bitfinex-derivatives/quotes_SOLF0:USTF0_20250312
["timestamp","ask_amount","ask_price","bid_price","bid_amount"]
[1741797305100,8.06955838,125.03,124.98,8.0021]
[1741797305301,0.34471,125.05,125.0,33.77578524]
[1741797305501,0.34471,125.05,125.02,33.77578524]
[1741797305715,0.34471,125.05,125.03,35.8]
[1741797306207,0.34471,125.05,125.02,0.05912209]
[1741797306904,43.54646136,125.07,125.02,0.05912209]
[1741797307102,35.54916136,125.07,125.01,94.85098668]
[1741797307308,273.93578524,125.06,125.03,241.03654186]
[1741797307607,33.77578524,125.05,125.03,214.78934186]
[1741797308204,223.96572076,125.06,125.03,214.78934186]
[1741797308509,223.96572076,125.06,125.05,468.19299403]
[1741797308709,232.01958937,125.06,125.05,459.10539403]
[1741797308911,0.05386861,125.06,125.05,459.10539403]
[1741797309702,0.05386861,125.06,125.04,81.21419732]
[1741797310215,35.83386861,125.06,125.04,81.21419732]
[1741797311015,41.77398524,125.05,125.04,68.08659732]
[1741797311214,41.77398524,125.05,125.04,50.14419732]
[1741797311709,281.87578524,125.05,125.01,326.64627491]
[1741797311909,33.77578524,125.03,125.01,326.64627491]
[1741797312208,43.7601,125.02,125.01,326.64627491]
[1741797312413,35.76,125.02,125.01,326.64627491]
[1741797312609,43.76,125.02,125.01,22.53830798]
[1741797312819,8.0007,125.01,125.0,255.16155138]
[1741797313010,8.0007,125.01,125.0,255.21387244]
[1741797313316,16.0007,125.01,125.0,255.21387244]
[1741797313703,69.53578524,125.02,125.0,255.21387244]
[1741797313903,0.05389961,125.03,125.0,255.21387244]
[1741797314114,35.76,125.02,125.0,255.21387244]
[1741797314616,35.76,125.02,125.0,0.05232106]
[1741797315516,0.05389961,125.03,125.0,0.05232106]
[1741797315709,0.05389961,125.03,125.02,8.0001]
[1741797316418,32.6875126,125.03,125.02,8.0001]
[1741797317315,32.6875126,125.03,125.0,0.05232106]
[1741797318114,32.6875126,125.03,125.0,33.8281063]
[1741797318516,32.6875126,125.03,125.02,8.0001]
[1741797319320,59.37461471,125.02,125.01,11.9673]
[1741797319713,59.37461471,125.02,125.0,33.77578524]
[1741797320113,59.37461471,125.02,125.01,8.0007]
[1741797320917,39.91737474,125.04,125.01,8.0]
[1741797321110,279.54178388,125.07,125.03,67.55157048]
[1741797321314,164.1114991,125.07,125.06,33.77578524]
[1741797321613,32.65637123,125.1,125.09,7.9956]
[1741797322520,32.65637123,125.1,125.08,8.04851638]
[1741797323015,32.65637123,125.1,125.02,69.51578524]
[1741797323212,32.65637123,125.1,125.02,35.74]
[1741797323513,35.74,125.09,125.02,35.74]
[1741797324114,7.9966,125.08,125.03,7.9992]
[1741797324319,0.06016937,125.07,125.04,0.05626869]
[1741797324515,33.77578524,125.06,124.89,122.05129901]
[1741797324721,33.77578524,124.99,124.88,33.77578524]
[1741797325020,35.74,124.98,124.96,53.72656215]
[1741797325815,35.79406292,124.98,124.96,53.7775075]
[1741797326115,35.79406292,124.98,124.96,47.2138075]
[1741797326323,35.79406292,124.98,124.96,40.6503075]
[1741797327521,35.79406292,124.98,124.96,0.05094535]
[1741797328225,0.05406292,124.98,124.96,0.05094535]
[1741797328522,35.74,125.1,124.97,53.96123679]
[1741797328723,4.45751196,125.09,125.03,61.96013679]
[1741797328917,12.2018,125.14,125.03,89.70123679]
[1741797329109,4.4548112,125.13,125.03,89.70123679]
[1741797329314,47.9418,125.14,125.04,7.9984]
[1741797329514,47.9418,125.14,125.08,0.05948721]
[1741797329711,0.05788429,125.1,125.08,0.05948721]
[1741797330916,0.05788429,125.1,125.08,8.05568721]
[1741797331119,0.05788429,125.1,125.08,0.05948721]
[1741797331321,240.04,125.15,125.09,74.31367421]
[1741797331822,248.0322,125.15,125.09,74.31367421]
[1741797332223,66.58383679,125.2,125.09,128.274911]
[1741797332423,4.46315068,125.19,125.09,128.274911]
[1741797332616,0.05433321,125.16,125.13,0.05379203]
[1741797332819,7.9924,125.14,125.13,0.05379203]
[1741797333019,0.05433321,125.16,125.13,0.05379203]
[1741797333221,54.01557,125.16,125.13,0.05379203]
[1741797333415,54.01557,125.16,125.09,74.31367421]
[1741797333622,53.96123679,125.14,125.09,74.31367421]
[1741797333823,35.74,125.13,125.09,74.31367421]
[1741797334322,39.8723,125.13,125.09,74.31367421]
[1741797334523,39.8723,125.13,125.1,0.05940655]
[1741797334524,0.05824366,125.12,125.1,0.05940655]
[1741797334715,58.4900523,125.12,125.1,0.05940655]
[1741797334923,7.995,125.1,125.09,132.13840561]
[1741797335120,0.05824366,125.12,125.09,132.13840561]
[1741797335425,4.52920938,125.12,125.09,132.13840561]
[1741797336123,4.52920938,125.12,125.09,132.19468248]
[1741797336319,7.995,125.1,125.09,33.10288116]
[1741797336522,12.47756542,125.1,125.09,33.10288116]
[1741797337426,7.995,125.1,125.09,33.10288116]
[1741797337727,12.48434421,125.1,125.09,7.28192493]
[1741797338117,7.9963,125.08,125.07,33.04660429]
[1741797338322,12.49527117,125.08,125.07,33.04660429]
[1741797338923,7.9963,125.08,125.07,33.04660429]
[1741797339136,7.9969,125.07,125.06,41.00107078]
[1741797339321,7.9969,125.07,125.03,132.13840561]
[1741797339322,4.49931341,125.07,125.03,132.13840561]
[1741797339517,53.96123679,125.05,125.04,43.35844365]
[1741797339720,94.1805502,125.05,125.04,3.70544365]
[1741797339925,102.1787502,125.05,125.04,4.365e-05]
[1741797341417,7.9988,125.04,125.03,4.576e-05]
[1741797341621,12.49811341,125.04,125.03,4.576e-05]
[1741797342224,4.49931341,125.04,125.03,4.576e-05]
[1741797342829,4.51415175,125.04,125.03,4.576e-05]
[1741797343230,12.51295175,125.04,125.03,4.576e-05]
[1741797343430,4.51415175,125.04,125.03,4.576e-05]
[1741797343736,12.51295175,125.04,125.03,4.576e-05]
[1741797345228,12.52075491,125.04,125.03,4.576e-05]
[1741797347631,8.0065,124.92,124.91,101.39987625]
[1741797347938,334.18748143,124.92,124.89,132.13840561]
[1741797348136,4.52624464,124.91,124.88,24.40311608]
[1741797348341,4.52624464,124.9,124.88,24.40311608]
[1741797348528,35.72,124.92,124.88,24.40311608]
[1741797348725,0.06111415,124.9,124.88,24.46204162]
[1741797348926,293.94123679,124.98,124.89,8.1064]
[1741797349130,35.72,124.96,124.89,8.1064]
[1741797349335,4.52259318,124.95,124.89,8.1064]
[1741797349633,4.52259318,124.94,124.89,16.1144]
[1741797349832,4.52259318,124.93,124.89,8.1064]
[1741797350033,0.05923759,124.93,124.9,0.05317442]
[1741797350936,54.02047438,124.93,124.9,0.05317442]
[1741797351137,35.74,124.92,124.9,0.05317442]
[1741797351533,43.747,124.92,124.9,0.05317442]
[1741797351731,35.74,124.92,124.9,0.05317442]
[1741797351931,0.05923759,124.93,124.9,0.05317442]
[1741797352137,53.96123679,124.97,124.9,0.05317442]
[1741797352341,35.74,124.97,124.9,0.05317442]
[1741797352541,35.74,124.97,124.89,35.74]
[1741797352738,53.96123679,124.99,124.89,35.74]
[1741797352932,8.0028,124.98,124.91,8.0069]
[1741797353132,89.70123679,124.99,124.89,35.74]
[1741797353337,0.0606311,124.96,124.93,0.058325]
[1741797355142,8.0052,124.94,124.93,0.058325]
[1741797355448,8.0052,124.94,124.93,2.5e-05]
[1741797358145,0.0606311,124.96,124.93,2.5e-05]
[1741797358352,35.8006311,124.96,124.93,2.5e-05]
[1741797359845,61.96643679,124.94,124.93,2.5e-05]
[1741797360648,8.0091,124.88,124.86,8.2293]
[1741797360852,53.96123679,124.9,124.86,8.2293]
[1741797361055,53.96123679,124.88,124.79,35.74]
[1741797361251,8.0101,124.87,124.8,4.1807]
[1741797361446,89.70123679,124.88,124.82,8.0125]
[1741797361652,89.70123679,124.88,124.8,4.1807]
[1741797361853,0.06169968,124.86,124.84,0.05733709]
[1741797362149,35.74,124.91,124.84,0.05733709]
[1741797362356,43.7472,124.91,124.83,35.74]
[1741797362750,35.74,124.91,124.84,53.96123679]
[1741797363052,89.70123679,124.97,124.86,53.96123679]
[1741797363354,35.74,124.97,124.88,53.96123679]
[1741797363754,35.74,124.97,124.92,8.0061]
[1741797363956,35.74,124.98,124.88,53.96123679]
[1741797364355,8.0037,124.97,124.93,8.0055]
[1741797364555,0.05982847,124.94,124.93,8.0055]
[1741797364764,0.05982847,124.94,124.92,0.05374308]
[1741797365250,35.74,124.98,124.92,0.05374308]
[1741797365455,43.7419,125.0,124.92,0.05374308]
[1741797365652,62.07273679,125.05,124.92,53.96123679]
[1741797365857,40.16277846,125.04,124.94,53.96123679]
[1741797366056,43.7391,125.04,124.95,39.8493]
[1741797366259,53.96123679,125.07,124.96,53.96123679]
[1741797366461,61.99243679,125.09,125.02,7.9999]
[1741797366659,35.74,125.09,125.0,53.96123679]
[1741797366858,35.74,125.09,125.01,39.7063]
[1741797367158,43.7361,125.09,125.01,39.7063]
[1741797367354,11.02385568,125.1,125.02,4.1093]
[1741797367960,0.05695629,125.07,125.05,0.06032314]
[1741797368753,7.9939,125.12,125.05,8.05852314]
[1741797368955,89.70123679,125.15,125.05,43.7382]
[1741797369151,35.74,125.16,125.06,53.96123679]
[1741797369457,7.9938,125.12,125.06,53.96123679]
[1741797369649,89.70123679,125.15,125.05,35.74]
[1741797369850,53.96123679,125.13,125.05,43.7381]
[1741797370054,0.03724785,125.11,125.09,0.05580582]
[1741797370257,35.72,125.18,125.09,0.05580582]
[1741797370459,98.05665953,125.2,125.1,89.68123679]
[1741797370661,275.86,125.21,125.1,89.68123679]
[1741797370861,53.96123679,125.2,125.1,89.68123679]
[1741797371457,7.9922,125.15,125.09,4.1007]
[1741797372154,7.9922,125.15,125.11,0.05636505]
[1741797372859,35.72,125.17,125.11,0.05636505]
[1741797373561,7.9921,125.15,125.11,0.05636505]
[1741797373763,89.68123679,125.2,125.12,7.9933]
[1741797373954,35.72,125.2,125.12,7.9933]
[1741797374457,35.72,125.2,125.15,0.05110184]
[1741797374458,7.9912,125.16,125.15,0.05110184]
[1741797375057,7.99,125.18,125.15,0.05110184]
[1741797375656,7.9907,125.17,125.15,0.05110184]
[1741797375858,35.7,125.19,125.15,0.05110184]
[1741797376053,53.96123679,125.24,125.15,0.05110184]
[1741797376257,7.9875,125.22,125.16,35.7]
[1741797376462,35.7,125.25,125.18,0.05520474]
[1741797376867,35.7,125.25,125.17,7.8775]
[1741797377165,35.7,125.26,125.2,0.05533306]
[1741797378863,7.988,125.21,125.2,0.05533306]
[1741797379059,35.7,125.26,125.2,0.05533306]
[1741797381165,7.988,125.21,125.2,0.05533306]
[1741797382562,7.9877,125.22,125.2,0.05533306]
[1741797382767,89.64123679,125.25,125.2,0.05533306]
[1741797383668,7.988,125.21,125.2,0.05533306]
[1741797386561,7.988,125.21,125.2,3.306e-05]
[1741797389172,97.60923679,125.21,125.2,3.306e-05]
[1741797389670,97.60923679,125.21,125.11,89.62123679]
[1741797389671,97.60123679,125.21,125.1,4.3649]
[1741797389872,53.96123679,125.17,125.1,4.3649]
[1741797390069,7.9943,125.12,125.1,4.3649]
[1741797390370,35.66,125.16,125.1,4.3649]
[1741797390872,0.05371622,125.14,125.12,0.05594841]
[1741797391771,8.04651622,125.14,125.12,0.05594841]
[1741797392272,7.9931,125.13,125.12,0.05594841]
[1741797393576,0.05371622,125.14,125.12,0.05594841]
[1741797395869,0.05371622,125.14,125.12,8.04934841]
[1741797396273,0.05371622,125.14,125.12,0.05594841]
[1741797397276,0.05371622,125.14,125.12,8.04934841]
[1741797397574,0.05371622,125.14,125.12,0.05594841]
[1741797398576,7.9931,125.13,125.12,0.05594841]
[1741797400271,8.04651622,125.14,125.12,0.05594841]
[1741797400467,0.05371622,125.14,125.12,0.05594841]
[1741797400988,193.0,125.27,125.17,7.99]
[1741797400989,243.9636,125.26,125.17,7.99]
[1741797401282,243.9636,125.26,125.11,35.66]
[1741797401283,37.41899887,125.21,125.13,8.6977]
[1741797401671,37.41899887,125.21,125.13,4.3466]
[1741797401872,7.9918,125.15,125.13,4.3466]
[1741797402176,35.66,125.18,125.11,7.9941]
[1741797402477,7.9928,125.14,125.13,0.05608997]
[1741797403280,7.9922,125.15,125.13,0.05608997]
[1741797404381,7.9924,125.14,125.13,0.05608997]
[1741797404570,35.66,125.18,125.13,0.05608997]
[1741797405579,33.11539887,125.17,125.13,0.05608997]
[1741797405780,37.34119887,125.17,125.13,0.05608997]
[1741797405969,7.9924,125.14,125.13,0.05608997]
[1741797406381,35.66,125.14,125.06,239.76]
[1741797406583,7.9957,125.09,125.06,7.997]
[1741797406783,33.11539887,125.13,125.04,43.9876]
[1741797407080,7.9957,125.09,125.04,43.9876]
[1741797407281,33.11539887,125.13,125.04,43.9876]
[1741797407482,0.05086776,125.08,125.05,35.7205325]
[1741797407677,0.05086776,125.08,125.05,35.66]
[1741797407886,0.05086776,125.08,125.07,7.9969]
[1741797408879,35.66,125.14,125.05,35.71649821]
[1741797409081,4.43300732,125.13,125.09,7.9953]
[1741797409282,12.42730732,125.12,125.09,7.9953]
[1741797409582,7.9943,125.12,125.09,7.9953]
[1741797409880,35.66,125.14,125.09,7.9953]
[1741797410081,4.44057229,125.13,125.09,0.05602696]
[1741797410281,4.44057229,125.12,125.09,0.05602696]
[1741797410482,12.43527229,125.11,125.09,0.05602696]
[1741797410682,7.9947,125.11,125.09,0.05602696]
[1741797411279,35.66,125.14,125.09,0.05602696]
[1741797411481,7.9942,125.12,125.09,8.05142696]
[1741797411680,35.66,125.14,125.09,0.05602696]
[1741797411877,33.11539887,125.12,125.04,8.3276]
[1741797412072,35.66,125.14,125.04,4.287]
[1741797412073,4.4547362,125.11,125.04,4.287]
[1741797412277,4.4547362,125.1,125.04,4.287]
[1741797412476,4.4547362,125.09,125.04,4.287]
[1741797412684,4.45738162,125.08,125.04,4.287]
[1741797412873,68.77539887,125.14,125.04,4.287]
[1741797413081,0.05459147,125.07,125.05,8.05457749]
[1741797413279,0.05356825,125.07,125.05,0.05347015]
[1741797413480,8.05056825,125.07,125.05,0.05347015]
[1741797414080,0.05356825,125.07,125.05,0.05347015]
[1741797414286,12.4557151,125.06,125.05,0.05347015]
[1741797414479,7.9976,125.06,125.05,0.05347015]
[1741797414885,8.05086825,125.07,125.05,0.05347015]
[1741797415086,4.4578748,125.06,125.05,0.05347015]
[1741797415382,7.9976,125.06,125.05,0.05347015]
[1741797415788,4.45593007,125.06,125.01,4.1187]
[1741797416087,7.9995,125.04,125.01,4.1187]
[1741797416281,33.11539887,125.08,124.99,35.66]
[1741797416486,35.66,125.06,124.99,35.66]
[1741797416791,4.45370155,125.05,124.99,35.66]
[1741797416986,4.50670059,125.04,125.01,0.05765334]
[1741797417284,0.05299904,125.04,125.01,0.05765334]
[1741797417886,0.05299904,125.04,125.03,7.9995]
[1741797418680,35.66,125.11,125.07,7.9969]
[1741797418884,35.66,125.11,125.04,68.77539887]
[1741797419082,4.166,125.15,125.08,33.11539887]
[1741797419287,4.44650339,125.14,125.08,68.77539887]
[1741797419486,4.1488,125.19,125.1,33.11539887]
[1741797419687,4.44516527,125.18,125.1,33.11539887]
[1741797419887,0.05436351,125.16,125.13,0.05967706]
[1741797420190,0.05436351,125.16,125.15,7.9918]
[1741797420790,4.4432522,125.2,125.14,33.11539887]
[1741797420990,79.75542274,125.22,125.17,7.9901]
[1741797421179,4.44236658,125.21,125.17,7.9901]
[1741797421379,4.44236658,125.21,125.15,4.094]
[1741797421581,4.44236658,125.21,125.17,7.9903]
[1741797421986,4.44236658,125.21,125.18,0.05713168]
[1741797422288,35.66,125.22,125.18,0.05713168]
[1741797422687,12.43099854,125.21,125.18,0.05713168]
[1741797422888,35.66,125.22,125.18,0.05713168]
[1741797423290,12.0664,125.23,125.18,8.04683168]
[1741797423486,4.44364604,125.22,125.18,8.04683168]
[1741797423687,4.44364604,125.22,125.19,7.9886]
[1741797423888,4.44364604,125.22,125.18,0.05713168]
[1741797424089,35.64,125.25,125.18,0.05713168]
[1741797424388,4.44360543,125.24,125.18,0.05713168]
[1741797424593,4.44360543,125.23,125.17,58.00512981]
[1741797424793,7.9853,125.26,125.2,8.04165199]
[1741797424987,4.44343577,125.25,125.2,8.04165199]
[1741797425189,4.44343577,125.24,125.2,35.69355199]
[1741797425390,53.75682981,125.32,125.21,53.75682981]
[1741797425697,4.44242487,125.31,125.25,0.05100514]
[1741797425991,93.83925468,125.3,125.25,0.05100514]
[1741797426290,7.9837,125.28,125.23,7.9867]
[1741797426594,35.64,125.3,125.26,0.05473148]
[1741797426898,7.9835,125.28,125.26,0.05473148]
[1741797427095,35.64,125.3,125.26,0.05473148]
[1741797427294,4.44010892,125.29,125.26,0.05473148]
[1741797428792,53.75682981,125.28,125.19,7.989]
[1741797428993,53.75682981,125.26,125.17,4.2483]
[1741797429293,4.3494,125.28,125.17,4.2483]
[1741797429294,53.75682981,125.24,125.17,4.2483]
[1741797429896,35.62,125.25,125.19,7.9891]
[1741797430097,0.06054825,125.22,125.19,0.06102682]
[1741797430286,0.06054825,125.22,125.19,8.05012682]
[1741797430487,0.06054825,125.22,125.19,35.68102682]
[1741797430693,0.06054825,125.22,125.2,4.1185]
[1741797431189,0.06054825,125.22,125.19,35.68102682]
[1741797431190,0.06054825,125.22,125.19,0.06102682]
[1741797431392,0.06054825,125.22,125.2,7.9882]
[1741797431586,0.06054825,125.22,125.19,0.06102682]
[1741797431786,8.04824825,125.22,125.19,0.06102682]
[1741797432597,0.06054825,125.22,125.19,0.06102682]
[1741797434301,35.62,125.21,125.19,0.06102682]
[1741797434797,7.9886,125.2,125.19,0.06102682]
[1741797435102,35.62,125.21,125.15,7.9917]
[1741797435300,7.9897,125.19,125.13,8.3505]
[1741797435502,35.62,125.21,125.13,8.3505]
[1741797436095,0.05116261,125.18,125.16,0.05095395]
[1741797436298,35.62,125.24,125.17,35.62]
[1741797436898,7.9878,125.22,125.17,35.62]
[1741797437101,35.62,125.24,125.17,35.62]
[1741797437298,7.9877,125.22,125.18,7.9893]
[1741797437497,8.0467455,125.22,125.19,0.05190912]
[1741797437703,0.0590455,125.22,125.19,0.05190912]
[1741797438001,0.0590455,125.22,125.19,8.04050912]
[1741797438198,0.0590455,125.22,125.19,0.05190912]
[1741797439199,0.0590455,125.22,125.2,7.988]
[1741797439397,0.0590455,125.22,125.19,0.05190912]
[1741797439603,0.0590455,125.22,125.19,4.10650912]
[1741797441403,0.0590455,125.22,125.21,7.988]
[1741797441604,0.0590455,125.22,125.19,4.10650912]
[1741797442696,0.0590455,125.22,125.21,7.988]
[1741797443904,4.2212,125.28,125.19,57.86333893]
[1741797444102,4.2212,125.28,125.2,4.1795]
[1741797444507,4.2212,125.28,125.21,7.9877]
[1741797444707,4.2212,125.28,125.2,4.1795]
[1741797444901,7.9865,125.24,125.2,7.9881]
[1741797445209,33.0543115,125.27,125.23,0.06148593]
[1741797446916,7.9861,125.24,125.23,0.06148593]
[1741797448713,35.6,125.25,125.23,0.06148593]
[1741797449411,7.9861,125.24,125.23,0.06148593]
[1741797450615,7.9861,125.24,125.23,8.593e-05]
[1741797452517,12.41308932,125.24,125.23,8.593e-05]
[1741797452705,7.9861,125.24,125.23,8.593e-05]
[1741797454512,0.05886431,125.25,125.23,8.593e-05]
[1741797457013,0.05886431,125.25,125.24,7.9861]
[1741797457211,239.72,125.31,125.23,8.593e-05]
[1741797457410,40.01051577,125.3,125.21,33.0543115]
[1741797457608,4.43051577,125.29,125.24,7.9857]
[1741797457812,4.43051577,125.29,125.22,8.2994]
[1741797458010,7.9848,125.26,125.22,8.2994]
[1741797458221,7.9848,125.26,125.23,7.9867]
[1741797458523,7.9858,125.25,125.23,0.05811437]
[1741797458817,68.6343115,125.29,125.23,0.05811437]
[1741797459014,4.43283286,125.28,125.23,0.05811437]
[1741797459219,35.58,125.3,125.25,7.985]
[1741797459518,4.43489952,125.29,125.22,8.2994]
[1741797459714,4.43489952,125.29,125.26,0.05331543]
[1741797460119,35.58,125.3,125.26,0.05331543]
[1741797460321,12.4180822,125.29,125.26,0.05331543]
[1741797460514,35.58,125.3,125.26,0.05331543]
[1741797460817,7.9819,125.31,125.26,0.05331543]
[1741797461120,4.43839197,125.3,125.26,0.05331543]
[1741797461315,35.56,125.32,125.24,35.56]
[1741797461621,4.44408397,125.31,125.27,0.06118076]
[1741797461819,68.6143115,125.35,125.25,33.0543115]
[1741797462124,4.4433889,125.34,125.28,0.05502901]
[1741797462316,33.0543115,125.29,125.22,8.2994]
[1741797462517,40.0033889,125.28,125.22,8.2994]
[1741797462719,4.4433889,125.27,125.22,8.2994]
[1741797463020,4.4433889,125.26,125.2,4.3612]
[1741797463217,4.4433889,125.25,125.2,4.3612]
[1741797463423,7.9885,125.21,125.16,35.56]
[1741797463615,0.05797146,125.24,125.16,4.0497]
[1741797463921,7.9898,125.19,125.17,0.05143673]
[1741797464116,4.46594632,125.18,125.12,8.178]
[1741797464318,4.4660116,125.17,125.12,8.178]
[1741797464620,4.53047896,125.16,125.14,0.05598578]
[1741797464816,0.05954977,125.16,125.14,0.05598578]
[1741797465325,0.05954977,125.16,125.15,7.9918]
[1741797465515,35.56,125.22,125.14,0.05598578]
[1741797465720,4.46976216,125.21,125.13,68.6143115]
[1741797466019,4.46976216,125.2,125.13,68.6143115]
[1741797466325,7.9904,125.18,125.13,35.56]
[1741797466819,7.9904,125.18,125.14,0.05925808]
[1741797467021,12.46052978,125.17,125.14,0.05925808]
[1741797467322,7.9905,125.17,125.13,43.553]
[1741797467526,7.9905,125.17,125.14,0.05376408]
[1741797467824,12.46116224,125.16,125.14,0.05376408]
[1741797468018,35.56,125.18,125.12,8.178]
[1741797468222,4.47004197,125.17,125.14,0.05956879]
[1741797468425,4.47004197,125.16,125.14,0.05956879]
[1741797468626,4.46855877,125.15,125.14,0.05956879]
[1741797468829,35.56,125.18,125.14,0.05956879]
[1741797469123,4.46857454,125.17,125.14,0.05956879]
[1741797469427,4.46857454,125.16,125.14,0.05956879]
[1741797469626,35.56,125.18,125.14,0.05956879]
[1741797469831,37.52118737,125.17,125.14,0.01721784]
[1741797470028,7.9918,125.15,125.14,0.01721784]
[1741797470226,12.45867587,125.15,125.14,0.01721784]
[1741797470728,4.46687587,125.15,125.06,4.1694]
[1741797470929,7.9942,125.12,125.08,7.9959]
[1741797471126,35.56,125.14,125.06,4.1694]
[1741797471430,4.46505858,125.13,125.06,4.1694]
[1741797471628,4.46281386,125.12,125.06,4.1694]
[1741797471831,0.05105927,125.1,125.08,0.05801498]
[1741797472433,0.05105927,125.1,125.09,7.9956]
[1741797472632,0.05105927,125.1,125.08,0.05801498]
[1741797474233,0.05105927,125.1,125.09,7.9956]
[1741797475335,0.05105927,125.1,125.08,8.05411498]
[1741797476031,0.05105927,125.1,125.08,8.05401498]
[1741797476432,0.05105927,125.1,125.08,0.05801498]
[1741797476729,7.9956,125.09,125.08,0.05801498]
[1741797476929,0.05105927,125.1,125.08,0.05801498]
[1741797477130,8.04635927,125.1,125.08,0.05801498]
[1741797477328,0.05105927,125.1,125.08,0.05801498]
[1741797477730,0.05105927,125.1,125.08,8.05401498]
[1741797477931,0.05105927,125.1,125.08,0.05801498]
[1741797478722,7.9956,125.09,125.08,0.05801498]
[1741797479224,37.49969137,125.09,124.95,154.91127488]
[1741797479425,4.44537987,125.08,124.99,8.4657]
[1741797479725,35.56,125.1,125.0,68.6143115]
[1741797480333,0.05032831,125.06,125.04,0.05146793]
[1741797482133,35.58,125.13,125.04,35.63146793]
[1741797482327,35.58,125.13,125.04,35.58]
[1741797482533,35.58,125.13,125.05,4.0911]
[1741797483238,0.06142567,125.1,125.08,0.05250427]
[1741797483441,35.56,125.09,125.08,0.05250427]
[1741797483938,0.06142567,125.1,125.08,0.05250427]
[1741797484741,8.05672567,125.1,125.08,0.05250427]
[1741797485241,0.06142567,125.1,125.08,0.05250427]
[1741797485942,7.9956,125.09,125.08,0.05250427]
[1741797487035,7.9956,125.09,125.08,4.27e-06]
[1741797487238,41.0499115,125.09,125.08,4.27e-06]
[1741797487545,33.0543115,125.09,124.94,33.0543115]
[1741797487742,33.0543115,125.04,124.97,4.2272]
[1741797487945,68.6143115,125.04,124.97,4.2272]
[1741797488242,8.0025,124.99,124.97,4.2272]
[1741797488841,8.0027,124.98,124.97,0.05502125]
[1741797489040,0.05688317,124.99,124.97,0.05502125]
[1741797490145,0.05688317,124.99,124.97,8.05822125]
[1741797490536,68.6143115,125.04,124.97,8.05822125]
[1741797490537,35.56,125.04,124.97,0.05502125]
[1741797491342,68.6143115,125.04,124.97,0.05502125]
[1741797491639,0.05727917,125.02,124.97,0.05502125]
[1741797491946,0.05727917,125.02,124.97,8.05782125]
[1741797492136,0.05727917,125.02,124.97,0.05502125]
[1741797492335,8.0012,125.01,124.97,8.05822125]
[1741797492540,8.0012,125.01,124.97,0.05502125]
[1741797492744,33.11159067,125.02,124.97,0.05502125]
[1741797493547,8.05777917,125.02,124.98,8.0023]
[1741797493746,0.05727917,125.02,124.98,8.0023]
[1741797493942,0.05727917,125.02,124.97,0.05502125]
[1741797494247,0.05727917,125.02,124.97,33.10933275]
[1741797494449,35.58,125.07,124.97,33.10933275]
[1741797494654,35.58,125.07,124.97,33.0543115]
[1741797494847,68.6343115,125.1,124.99,33.0543115]
[1741797495050,43.5753,125.1,125.06,7.9971]
[1741797495252,35.58,125.13,125.04,35.58]
[1741797495748,35.58,125.13,125.07,0.05533032]
[1741797496948,33.0543115,125.1,125.07,0.05533032]
[1741797497157,35.56,125.09,125.07,0.05533032]
[1741797497451,33.0543115,125.08,125.01,35.56]
[1741797497852,33.0543115,125.08,125.01,43.5606]
[1741797498052,33.0543115,125.08,125.01,35.56]
[1741797498247,7.9983,125.05,125.01,43.5607]
[1741797498449,33.0543115,125.08,125.01,43.5607]
[1741797498450,33.0543115,125.08,125.01,35.56]
[1741797498650,0.0516624,125.04,125.02,0.05062854]
[1741797499652,7.9995,125.03,125.02,0.05062854]
[1741797504049,7.9995,125.03,125.02,2.854e-05]
[1741797504456,8.0,125.03,124.86,120.75834524]
[1741797504655,33.0543115,124.97,124.89,8.0078]
[1741797504952,35.56,124.96,124.89,8.0078]
[1741797505260,35.56,124.96,124.9,8.0075]
[1741797505462,8.06053103,124.94,124.92,0.05451113]
[1741797505660,0.05493103,124.94,124.92,0.05451113]
[1741797505857,8.0059,124.93,124.92,1.113e-05]
[1741797506361,33.0543115,124.93,124.86,120.75834524]
[1741797506758,35.56,124.92,124.86,120.75834524]
[1741797506962,33.0543115,124.91,124.86,120.75834524]
[1741797507456,33.0543115,124.89,124.87,0.05876517]
[1741797507656,35.56,124.88,124.87,0.05876517]
[1741797509663,0.05529804,124.9,124.87,0.05876517]
[1741797513566,8.0085,124.89,124.87,0.05876517]
[1741797513762,0.05529804,124.9,124.87,0.05876517]
[1741797517169,8.06309804,124.9,124.87,0.05876517]
[1741797517365,0.05529804,124.9,124.87,0.05876517]
[1741797517663,8.0091,124.88,124.87,0.05876517]
[1741797517864,33.0543115,124.85,124.72,291.8175]